bitfinex-derivatives/quotes_SOLF0:USTF0_20251006
["timestamp","ask_amount","ask_price","bid_price","bid_amount"]
[1759747211417,108.3688,232.54,232.48,3.61790331]
[1759747211621,6.58,232.53,232.48,3.61790331]
[1759747211822,108.3688,232.54,232.48,3.61790331]
[1759747212224,6.58,232.53,232.48,3.61790331]
[1759747212823,1.23017613,232.51,232.47,3.61790331]
[1759747213023,6.58,232.5,232.45,3.61790331]
[1759747213228,104.5,232.49,232.45,3.61790331]
[1759747213419,111.08,232.49,232.43,7.48830331]
[1759747214829,111.08,232.49,232.43,3.8704]
[1759747215330,104.5,232.49,232.42,7.61]
[1759747215531,6.58,232.48,232.42,7.61]
[1759747215729,6.58,232.48,232.41,3.61790331]
[1759747215940,8.50468471,232.48,232.4,3.61790331]
[1759747216328,8.50468471,232.48,232.32,60.2364]
[1759747216329,8.50468471,232.48,232.39,3.61790331]
[1759747216536,6.58,232.46,232.39,3.61790331]
[1759747217633,6.58,232.46,232.4,3.8709]
[1759747218134,3.8703,232.45,232.39,3.61790331]
[1759747218332,104.52,232.44,232.36,10.88790331]
[1759747218633,6.59,232.43,232.36,7.27]
[1759747218832,6.59,232.43,232.37,3.8714]
[1759747221843,6.59,232.41,232.36,7.27]
[1759747222142,6.59,232.42,232.36,7.27]
[1759747222346,18.8,232.41,232.35,11.1418]
[1759747222942,35.98,232.4,232.36,7.27]
[1759747223535,52.3,232.39,232.35,11.1418]
[1759747223738,58.89,232.39,232.36,7.27]
[1759747224140,52.3,232.39,232.36,7.27]
[1759747224442,6.59,232.43,232.37,7.27]
[1759747224846,6.59,232.41,232.37,7.27]
[1759747225648,6.59,232.41,232.36,3.8715]
[1759747225850,6.59,232.41,232.37,3.8714]
[1759747226038,3.8704,232.45,232.33,3.61790331]
[1759747226039,6.59,232.45,232.38,7.27]
[1759747226445,12.14,232.44,232.38,11.1412]
[1759747227152,6.59,232.43,232.34,3.60461317]
[1759747227346,6.59,232.43,232.33,7.27]
[1759747228247,26.74,232.42,232.35,10.87461317]
[1759747228444,26.74,232.42,232.36,7.27]
[1759747229543,26.74,232.42,232.38,3.8714]
[1759747229749,6.59,232.41,232.38,7.27]
[1759747233056,33.33,232.42,232.36,3.8717]
[1759747233357,33.33,232.42,232.36,11.1417]
[1759747238154,33.33,232.42,232.36,7.27]
[1759747238359,26.74,232.42,232.36,7.27]
[1759747240559,26.74,232.42,232.39,3.8711]
[1759747241062,26.74,232.42,232.4,7.79]
[1759747242061,26.74,232.42,232.4,11.6609]
[1759747243162,26.74,232.42,232.4,3.8709]
[1759747243558,26.74,232.42,232.41,7.79]
[1759747244464,33.32,232.42,232.4,3.8709]
[1759747245865,26.74,232.42,232.4,11.6609]
[1759747246362,33.32,232.42,232.4,11.6609]
[1759747246562,26.74,232.42,232.4,3.8709]
[1759747246765,6.58,232.52,232.45,3.8702]
[1759747247155,6.58,232.52,232.4,3.60461317]
[1759747247361,45.86,232.53,232.47,7.79]
[1759747247801,45.86,232.53,232.49,3.8694]
[1759747248063,6.59,232.52,232.49,3.8694]
[1759747248662,6.59,232.52,232.49,11.4594]
[1759747248864,45.86,232.53,232.51,11.4592]
[1759747249068,45.86,232.53,232.52,7.59]
[1759747249756,6.59,232.59,232.54,3.8687]
[1759747249954,6.59,232.61,232.54,3.8687]
[1759747250255,6.59,232.61,232.52,7.59]
[1759747250459,6.59,232.61,232.55,3.8684]
[1759747252461,66.95,232.62,232.56,3.8682]
[1759747252666,66.95,232.62,232.54,7.59]
[1759747252867,66.95,232.62,232.54,11.4587]
[1759747253067,6.59,232.61,232.54,11.4587]
[1759747254558,6.59,232.61,232.55,3.8684]
[1759747254760,4.84753208,232.81,232.64,60.1534]
[1759747255068,1.0742832,232.83,232.67,7.59]
[1759747255268,9.82,232.84,232.67,7.59]
[1759747255470,22.9696665,232.84,232.67,7.59]
[1759747255668,9.82,232.84,232.67,7.59]
[1759747256567,3.8641,232.82,232.67,11.4565]
[1759747256770,9.82,232.84,232.68,7.59]
[1759747256970,9.82,232.84,232.7,7.59]
[1759747257774,3.8639,232.83,232.7,7.59]
[1759747257972,69.9241,232.84,232.7,7.59]
[1759747258379,3.8643,232.81,232.7,7.59]
[1759747259176,3.8443,232.81,232.7,7.59]
[1759747262082,3.8646,232.79,232.7,7.59]
[1759747263783,60.1117,232.81,232.63,3.71785466]
[1759747264089,62.04268471,232.79,232.64,7.59]
[1759747264382,3.8647,232.78,232.64,7.59]
[1759747264977,3.8651,232.76,232.64,3.8669]
[1759747265277,36.0,232.75,232.65,7.59]
[1759747267782,36.0,232.75,232.7,7.59]
[1759747269787,36.0,232.75,232.69,3.8662]
[1759747270375,36.0,232.75,232.7,7.59]
[1759747270583,36.0,232.75,232.71,3.8658]
[1759747271180,36.0,232.75,232.72,7.59]
[1759747271389,36.0,232.75,232.71,3.8658]
[1759747271681,36.0,232.75,232.72,7.59]
[1759747272085,36.0,232.75,232.71,3.8658]
[1759747272385,36.0,232.75,232.72,7.59]
[1759747272782,36.0,232.75,232.71,3.8658]
[1759747273193,36.0,232.75,232.72,7.59]
[1759747274389,36.0,232.75,232.71,3.8658]
[1759747274585,36.0,232.75,232.72,7.59]
[1759747274788,36.0,232.75,232.73,11.4555]
[1759747275090,42.58812949,232.83,232.74,7.59]
[1759747276592,3.8641,232.82,232.74,7.59]
[1759747277893,3.8641,232.82,232.73,1.22812949]
[1759747278289,42.58812949,232.83,232.7,8.68812949]
[1759747278290,5.09252949,232.8,232.7,8.68812949]
[1759747279790,5.09252949,232.8,232.71,3.8658]
[1759747279987,5.09252949,232.8,232.63,3.71785466]
[1759747279988,60.1414,232.7,232.57,11.06461317]
[1759747280188,1.22812949,232.65,232.51,7.46]
[1759747280491,5.09562949,232.62,232.51,7.46]
[1759747284196,1.22812949,232.6,232.51,7.46]
[1759747284599,5.09592949,232.6,232.51,7.46]
[1759747285999,1.22812949,232.57,232.51,7.46]
[1759747287300,1.22812949,232.59,232.51,7.46]
[1759747288701,1.22812949,232.59,232.53,3.8688]
[1759747289698,1.22812949,232.59,232.53,11.3288]
[1759747290402,1.22812949,232.59,232.53,7.46]
[1759747291506,1.22812949,232.62,232.53,7.46]
[1759747292202,1.22812949,232.62,232.54,3.8687]
[1759747292402,1.22812949,232.67,232.57,7.46]
[1759747292900,1.22812949,232.67,232.61,3.8675]
[1759747293102,60.1242,232.76,232.62,7.46]
[1759747293304,1.22812949,232.72,232.62,7.46]
[1759747293606,5.09382949,232.72,232.62,7.46]
[1759747293997,1.22812949,232.69,232.62,7.46]
[1759747294906,1.22812949,232.66,232.57,7.65]
[1759747295107,60.1249,232.76,232.6,7.65]
[1759747295108,1.22812949,232.7,232.6,7.65]
[1759747296302,1.22812949,232.7,232.6,11.5175]
[1759747296507,1.22812949,232.7,232.61,7.65]
[1759747297807,1.22812949,232.7,232.62,3.8673]
[1759747298008,1.22812949,232.7,232.63,7.65]
[1759747300811,5.09422949,232.7,232.63,7.65]
[1759747301108,1.22812949,232.67,232.57,7.65]
[1759747301900,1.22812949,232.67,232.58,7.65]
[1759747304413,1.22812949,232.67,232.58,8.87812949]
[1759747306114,1.22812949,232.67,232.58,12.74602949]
[1759747306313,5.09452949,232.68,232.59,7.65]
[1759747307118,5.09452949,232.68,232.59,3.8677]
[1759747307417,5.09452949,232.68,232.6,7.65]
[1759747310017,1.22812949,232.68,232.61,3.8675]
[1759747311313,1.22812949,232.68,232.62,7.29]
[1759747311520,169.02677166,232.78,232.61,3.8675]
[1759747311521,1.22812949,232.73,232.61,1.22812949]
[1759747311718,1.22812949,232.73,232.62,7.29]
[1759747312720,3.8658,232.72,232.65,7.29]
[1759747316217,0.74791261,232.83,232.71,7.29]
[1759747316414,12.99301611,232.87,232.71,8.51812949]
[1759747316415,1.22812949,232.79,232.71,8.51812949]
[1759747318115,1.22812949,232.79,232.72,3.8657]
[1759747318314,1.22812949,232.79,232.73,7.29]
[1759747318516,1.22812949,232.82,232.73,7.29]
[1759747319721,1.22812949,232.82,232.75,7.29]
[1759747320120,5.09222949,232.82,232.75,7.29]
[1759747321319,3.8644,232.8,232.75,7.29]
[1759747321521,1.22812949,232.76,232.7,7.29]
[1759747321719,1.22812949,232.73,232.66,7.29]
[1759747322525,5.09352949,232.75,232.67,7.29]
[1759747322726,3.8654,232.75,232.67,7.29]
[1759747322931,1.22812949,232.76,232.67,7.29]
[1759747323223,1.22812949,232.76,232.68,7.29]
[1759747323425,5.09332949,232.76,232.68,7.29]
[1759747323624,1.22812949,232.76,232.68,7.29]
[1759747324424,3.8654,232.75,232.68,7.29]
[1759747327224,1.22812949,232.73,232.64,1.22812949]
[1759747327428,1.22812949,232.73,232.64,7.29]
[1759747328030,3.8659,232.72,232.64,7.29]
[1759747329034,1.22812949,232.73,232.64,7.29]
[1759747329638,5.09382949,232.73,232.64,7.29]
[1759747330140,5.09382949,232.73,232.64,11.1569]
[1759747330438,5.09382949,232.73,232.65,7.29]
[1759747331340,3.8658,232.72,232.65,7.29]
[1759747334640,3.866,232.71,232.65,7.29]
[1759747335741,3.8662,232.7,232.65,7.29]
[1759747336442,3.8662,232.7,232.63,7.29]
[1759747337542,3.8662,232.7,232.63,11.1571]
[1759747340145,3.8662,232.7,232.63,14.76171317]
[1759747340346,1.92092219,232.76,232.65,7.68]
[1759747340551,14.94,232.77,232.65,7.68]
[1759747340748,16.86092219,232.77,232.65,7.68]
[1759747341750,3.8658,232.72,232.65,7.68]
[1759747342353,3.8658,232.72,232.66,3.8667]
[1759747342651,3.8654,232.74,232.67,7.68]
[1759747343153,3.8657,232.73,232.67,7.68]
[1759747343352,16.86092219,232.77,232.67,7.68]
[1759747343752,3.8658,232.72,232.67,7.68]
[1759747344049,3.8658,232.72,232.65,7.68]
[1759747344449,3.866,232.71,232.65,7.68]
[1759747344649,16.86092219,232.77,232.65,7.68]
[1759747344847,16.86092219,232.77,232.66,7.68]
[1759747345552,3.8655,232.73,232.66,7.68]
[1759747346747,3.8655,232.73,232.67,7.68]
[1759747349955,3.8653,232.75,232.67,3.8664]
[1759747350257,3.8653,232.75,232.68,7.68]
[1759747350650,18.8049,232.77,232.68,11.5462]
[1759747353651,3.8651,232.76,232.68,11.5462]
[1759747354058,14.94,232.77,232.68,7.68]
[1759747354757,3.8655,232.74,232.68,7.68]
[1759747355852,16.86092219,232.77,232.65,7.47151317]
[1759747356053,16.86092219,232.77,232.65,3.60461317]
[1759747356263,16.86092219,232.77,232.64,11.23461317]
[1759747356853,16.86092219,232.77,232.65,7.63]
[1759747357656,3.8659,232.72,232.65,7.63]
[1759747360354,3.8659,232.72,232.65,11.4968]
[1759747361050,3.8654,232.74,232.65,11.23461317]
[1759747361250,14.94,232.77,232.67,7.63]
[1759747362657,3.8653,232.75,232.68,3.8663]
[1759747364261,3.8655,232.74,232.67,11.23461317]
[1759747365867,1.92092219,232.76,232.66,3.60461317]
[1759747366570,3.8658,232.72,232.66,3.60461317]
[1759747367265,3.8658,232.72,232.64,11.4969]
[1759747367266,3.8658,232.72,232.67,3.60461317]
[1759747367574,62.04472219,232.76,232.67,3.60461317]
[1759747367762,62.04472219,232.76,232.65,3.60461317]
[1759747367965,1.92092219,232.76,232.66,7.98]
[1759747368163,1.92092219,232.76,232.66,11.58461317]
[1759747368363,3.8658,232.72,232.66,11.58461317]
[1759747369165,3.8658,232.72,232.66,7.98]
[1759747369564,3.8658,232.72,232.66,11.58461317]
[1759747369764,1.92092219,232.76,232.66,11.58461317]
[1759747371070,3.8659,232.71,232.67,7.98]
[1759747376173,3.8661,232.7,232.67,7.98]
[1759747379070,3.8661,232.7,232.66,3.60461317]
[1759747379776,3.8657,232.72,232.66,3.60461317]
[1759747379965,3.8657,232.72,232.67,7.98]
[1759747380164,3.8657,232.72,232.66,3.60461317]
[1759747380367,3.8657,232.72,232.67,7.98]
[1759747380968,1.92092219,232.76,232.67,7.98]
[1759747380969,3.866,232.71,232.67,7.98]
[1759747381169,3.866,232.71,232.66,3.60461317]
[1759747381370,3.866,232.71,232.67,7.98]
[1759747381773,3.866,232.71,232.66,3.60461317]
[1759747382478,3.866,232.71,232.67,7.98]
[1759747382683,3.866,232.71,232.66,3.60461317]
[1759747383077,3.866,232.71,232.67,7.98]
[1759747383572,3.8653,232.75,232.68,7.98]
[1759747383772,3.8653,232.75,232.69,7.98]
[1759747383980,14.94,232.77,232.69,7.98]
[1759747384172,3.8657,232.73,232.69,7.98]
[1759747384372,3.8657,232.73,232.68,3.60461317]
[1759747385274,3.8657,232.73,232.69,7.98]
[1759747386276,3.8657,232.73,232.68,3.60461317]
[1759747386477,3.8657,232.73,232.69,7.98]
[1759747386679,3.8657,232.73,232.68,3.60461317]
[1759747387171,3.8659,232.71,232.68,3.60461317]
[1759747387373,3.8659,232.71,232.67,11.58461317]
[1759747387570,3.8659,232.71,232.67,7.98]
[1759747389377,3.8659,232.71,232.66,3.60461317]
[1759747389679,3.8659,232.71,232.67,7.98]
[1759747390278,3.8662,232.7,232.67,7.98]
[1759747393375,3.8662,232.7,232.66,3.60461317]
[1759747393879,3.8658,232.72,232.66,3.60461317]
[1759747394082,3.8658,232.72,232.66,11.58461317]
[1759747394382,16.86092219,232.77,232.66,11.58461317]
[1759747394983,3.866,232.71,232.66,3.60461317]
[1759747395580,16.86092219,232.77,232.67,7.98]
[1759747396583,76.98322219,232.77,232.67,7.98]
[1759747397685,3.866,232.71,232.66,3.60461317]
[1759747397983,3.866,232.71,232.67,7.31]
[1759747398177,3.866,232.71,232.66,3.60461317]
[1759747398377,3.866,232.71,232.67,7.31]
[1759747398981,3.866,232.71,232.66,3.60461317]
[1759747399278,3.866,232.71,232.67,7.31]
[1759747400076,3.866,232.71,232.66,3.60461317]
[1759747400385,3.866,232.71,232.63,9.92059137]
[1759747400386,3.866,232.71,232.67,3.60461317]
[1759747400882,3.866,232.71,232.68,7.31]
[1759747401080,3.866,232.71,232.67,3.60461317]
[1759747401585,3.866,232.71,232.68,7.31]
[1759747401788,3.866,232.71,232.67,3.62193629]
[1759747402580,3.866,232.71,232.68,7.31]
[1759747403580,3.866,232.71,232.67,3.62193629]
[1759747403786,3.866,232.71,232.68,7.31]
[1759747403986,3.866,232.71,232.67,3.62193629]
[1759747404386,3.866,232.71,232.68,7.31]
[1759747404584,3.866,232.71,232.67,3.62193629]
[1759747405187,3.866,232.71,232.68,7.31]
[1759747405790,3.866,232.71,232.67,3.62193629]
[1759747406091,3.866,232.71,232.68,7.31]
[1759747406283,3.866,232.71,232.67,3.62193629]
[1759747406479,3.866,232.71,232.68,7.31]
[1759747407591,1.229203,232.75,232.67,3.62193629]
[1759747407791,61.357003,232.75,232.67,3.62193629]
[1759747408692,3.8663,232.69,232.67,3.62193629]
[1759747408892,3.8663,232.69,232.67,10.93193629]
[1759747409795,3.8663,232.69,232.68,7.31]
[1759747413892,3.8656,232.73,232.67,3.62193629]
[1759747414294,3.8656,232.73,232.68,3.62193629]
[1759747414496,3.8656,232.73,232.69,7.83]
[1759747417797,3.8656,232.73,232.68,3.62302544]
[1759747418895,3.8656,232.73,232.69,7.83]
[1759747419198,3.8653,232.75,232.69,7.83]
[1759747419396,3.8653,232.75,232.69,11.45302544]
[1759747423597,3.8655,232.74,232.7,7.83]
[1759747423798,1.229203,232.75,232.68,3.62302544]
[1759747425596,3.8658,232.72,232.68,3.62302544]
[1759747425995,3.8658,232.72,232.69,7.83]
[1759747426697,3.8658,232.72,232.68,3.62302544]
[1759747427098,3.8658,232.72,232.69,7.83]
[1759747427305,3.8658,232.72,232.68,3.62302544]
[1759747427997,3.8658,232.72,232.69,7.95]
[1759747428903,3.8658,232.72,232.68,3.62302544]
[1759747429201,3.8658,232.72,232.69,7.95]
[1759747430298,3.8658,232.72,232.68,3.62302544]
[1759747430998,3.8658,232.72,232.69,7.95]
[1759747432505,3.8654,232.74,232.68,11.57302544]
[1759747436412,3.8656,232.73,232.69,7.95]
[1759747436612,3.8656,232.73,232.68,3.62302544]
[1759747436911,3.8656,232.73,232.69,7.95]
[1759747437513,3.8656,232.73,232.68,3.62302544]
[1759747437808,3.8656,232.73,232.69,7.95]
[1759747438014,3.8656,232.73,232.68,3.62302544]
[1759747438206,3.8656,232.73,232.69,7.95]
[1759747438506,3.8656,232.73,232.68,3.62302544]
[1759747438906,3.8656,232.73,232.69,7.95]
[1759747439307,3.8656,232.73,232.68,3.62302544]
[1759747439507,3.8656,232.73,232.69,7.95]
[1759747440215,3.8656,232.73,232.68,3.62302544]
[1759747440811,3.8656,232.73,232.69,7.95]
[1759747441312,3.8656,232.73,232.68,3.62302544]
[1759747441512,3.8656,232.73,232.69,7.95]
[1759747441712,3.8656,232.73,232.68,3.62302544]
[1759747441908,3.8656,232.73,232.69,7.95]
[1759747442309,3.8656,232.73,232.68,3.62302544]
[1759747442513,3.8653,232.75,232.69,11.57302544]
[1759747442705,14.94,232.77,232.69,11.57302544]
[1759747443113,18.805,232.77,232.7,7.95]
[1759747443509,14.94,232.77,232.7,7.95]
[1759747444607,3.8652,232.76,232.7,7.95]
[1759747447413,14.94,232.77,232.7,11.57302544]
[1759747447611,14.94,232.77,232.71,7.95]
[1759747447808,14.94,232.77,232.72,1.229203]
[1759747448413,14.94,232.77,232.73,7.95]
[1759747449113,18.805,232.77,232.73,7.95]
[1759747449319,18.805,232.77,232.72,7.95]
[1759747449618,18.805,232.77,232.71,3.62046076]
[1759747449809,18.805,232.77,232.72,7.95]
[1759747450216,18.805,232.77,232.71,3.62046076]
[1759747451413,18.805,232.77,232.72,7.95]
[1759747451918,18.805,232.77,232.71,3.62046076]
[1759747452725,18.805,232.77,232.72,7.95]
[1759747452916,3.8652,232.76,232.71,3.62046076]
[1759747453417,3.8652,232.76,232.72,7.95]
[1759747454420,3.8652,232.76,232.71,3.62046076]
[1759747455423,3.8652,232.76,232.72,7.95]
[1759747455718,3.8652,232.76,232.71,3.62046076]
[1759747455916,3.8652,232.76,232.72,7.95]
[1759747456512,3.8652,232.76,232.71,3.62046076]
[1759747456714,3.8652,232.76,232.72,7.95]
[1759747457020,3.8652,232.76,232.71,3.62046076]
[1759747457614,3.8652,232.76,232.72,7.95]
[1759747457817,3.8652,232.76,232.71,3.62046076]
[1759747458016,3.8652,232.76,232.72,7.76]
[1759747458518,3.8652,232.76,232.71,3.62046076]
[1759747459523,3.8652,232.76,232.72,7.76]
[1759747459915,3.8652,232.76,232.71,3.62046076]
[1759747460420,3.8652,232.76,232.72,7.76]
[1759747460620,3.8652,232.76,232.71,3.62046076]
[1759747461214,3.8652,232.76,232.72,7.76]
[1759747461718,3.8652,232.76,232.71,3.62046076]
[1759747461921,3.8652,232.76,232.72,7.76]
[1759747462521,3.8652,232.76,232.71,3.62046076]
[1759747462717,3.8652,232.76,232.72,11.38046076]
[1759747462922,3.8652,232.76,232.72,7.76]
[1759747463117,3.8652,232.76,232.71,7.76]
[1759747463525,3.8654,232.75,232.7,11.38046076]
[1759747463724,14.94,232.77,232.7,7.76]
[1759747464327,3.8655,232.74,232.7,7.76]
[1759747464828,3.8655,232.74,232.69,3.62046076]
[1759747465029,3.8655,232.74,232.7,7.76]
[1759747466324,14.94,232.77,232.68,3.62046076]
[1759747466523,14.94,232.77,232.67,3.62046076]
[1759747467125,16.85979347,232.77,232.67,3.62046076]
[1759747469329,3.8657,232.73,232.67,3.62046076]
[1759747470830,3.8657,232.73,232.68,7.76]
[1759747471033,3.8657,232.73,232.67,3.62046076]
[1759747471430,3.8657,232.73,232.68,7.76]
[1759747471626,3.8657,232.73,232.67,3.62046076]
[1759747472132,3.8657,232.73,232.68,7.76]
[1759747472325,3.8657,232.73,232.67,3.62046076]
[1759747472523,3.8657,232.73,232.68,7.76]
[1759747472726,3.8657,232.73,232.67,3.62046076]
[1759747472927,3.8657,232.73,232.68,3.62046076]
[1759747473627,3.8657,232.73,232.69,7.76]
[1759747473828,3.8657,232.73,232.68,3.62046076]
[1759747474935,3.8657,232.73,232.69,7.7]
[1759747475131,3.8657,232.73,232.68,3.62046076]
[1759747475332,3.8657,232.73,232.69,7.7]
[1759747475633,3.8657,232.73,232.68,3.62046076]
[1759747475834,3.8657,232.73,232.69,7.7]
[1759747476032,3.8657,232.73,232.68,3.62046076]
[1759747476636,3.8657,232.73,232.69,7.7]
[1759747476937,3.8657,232.73,232.68,3.62046076]
[1759747477126,3.8657,232.73,232.69,7.7]
[1759747477634,3.8657,232.73,232.68,3.62046076]
[1759747478034,3.8657,232.73,232.69,7.7]
[1759747478836,3.8657,232.73,232.68,3.62046076]
[1759747479230,3.8657,232.73,232.69,7.7]
[1759747479628,3.8657,232.73,232.68,3.62046076]
[1759747480032,3.8657,232.73,232.69,7.7]
[1759747480442,3.8657,232.73,232.68,3.62046076]
[1759747480633,3.8657,232.73,232.69,7.7]
[1759747480833,3.8657,232.73,232.68,3.62046076]
[1759747481034,3.8657,232.73,232.69,7.7]
[1759747481529,3.8657,232.73,232.68,3.62046076]
[1759747481836,3.8657,232.73,232.69,7.7]
[1759747482729,3.8657,232.73,232.68,3.62046076]
[1759747483537,3.8658,232.72,232.69,7.7]
[1759747483938,3.8658,232.72,232.68,3.62046076]
[1759747484140,3.8658,232.72,232.69,7.7]
[1759747484939,3.8658,232.72,232.68,3.62046076]
[1759747485139,3.8658,232.72,232.69,7.7]
[1759747485337,3.8658,232.72,232.68,3.62046076]
[1759747486242,3.8658,232.72,232.69,7.7]
[1759747486442,3.8658,232.72,232.68,3.62046076]
[1759747486642,3.8658,232.72,232.69,7.7]
[1759747486839,3.8658,232.72,232.68,3.62046076]
[1759747487642,3.8658,232.72,232.69,7.7]
[1759747488242,3.8658,232.72,232.69,7.48]
[1759747488445,3.8658,232.72,232.68,3.62046076]
[1759747488839,3.866,232.71,232.69,7.48]
[1759747489342,3.866,232.71,232.68,3.62046076]
[1759747489543,3.866,232.71,232.69,7.48]
[1759747489739,3.866,232.71,232.68,3.62046076]
[1759747490233,3.866,232.71,232.68,7.48]
[1759747491239,3.866,232.71,232.67,3.62046076]
[1759747492445,3.866,232.71,232.68,7.48]
[1759747493044,3.866,232.71,232.67,3.62046076]
[1759747493644,3.866,232.71,232.68,7.48]
[1759747494045,3.866,232.71,232.67,3.62046076]
[1759747495045,3.866,232.71,232.68,7.48]
[1759747496046,3.866,232.71,232.67,3.62046076]
[1759747496242,3.866,232.71,232.68,3.62046076]
[1759747496446,3.866,232.71,232.69,7.48]
[1759747496749,3.866,232.71,232.67,3.62046076]
[1759747496950,3.866,232.71,232.68,7.48]
[1759747497144,3.866,232.71,232.67,3.62046076]
[1759747498050,3.866,232.71,232.68,7.48]
[1759747498251,3.866,232.71,232.69,7.48]
[1759747498448,3.866,232.71,232.68,3.62046076]
[1759747498653,3.8656,232.73,232.68,3.62046076]
[1759747498852,3.8656,232.73,232.69,7.48]
[1759747499953,16.85979347,232.77,232.68,11.10046076]
[1759747500445,16.85979347,232.77,232.65,4.82428837]
[1759747500446,14.94,232.77,232.7,3.62046076]
[1759747500650,14.94,232.77,232.72,7.48]
[1759747501450,14.94,232.77,232.72,3.62046076]
[1759747501652,14.94,232.77,232.73,7.48]
[1759747502258,3.8642,232.81,232.74,7.48]
[1759747503156,3.8645,232.8,232.74,7.48]
[1759747503552,104.66,232.84,232.74,7.48]
[1759747504256,3.8641,232.82,232.74,7.48]
[1759747504557,104.66,232.84,232.72,3.8657]
[1759747504558,104.66,232.84,232.76,7.48]
[1759747505153,3.8646,232.79,232.76,7.48]
[1759747505353,3.8646,232.79,232.75,7.48]
[1759747505657,3.8646,232.79,232.74,3.62046076]
[1759747506053,3.8646,232.79,232.75,7.48]
[1759747506253,3.8646,232.79,232.76,7.48]
[1759747506457,3.8642,232.81,232.76,7.48]
[1759747508261,3.8645,232.8,232.76,7.48]
[1759747508957,3.8645,232.8,232.74,7.48]
[1759747509563,104.66,232.84,232.74,7.48]
[1759747509564,3.8641,232.82,232.74,7.48]
[1759747509759,3.8641,232.82,232.75,7.48]
[1759747509962,104.66,232.84,232.75,7.48]
[1759747511064,104.66,232.84,232.75,11.3451]
[1759747511065,108.5237,232.84,232.75,11.3451]
[1759747511268,108.5237,232.84,232.76,7.48]
[1759747513360,108.5237,232.84,232.77,7.48]
[1759747517269,3.8641,232.82,232.77,7.48]
[1759747517465,104.66,232.84,232.75,7.48]
[1759747517661,1.91979347,232.81,232.71,11.10046076]
[1759747517858,1.91979347,232.81,232.71,7.48]
[1759747518567,3.865,232.77,232.71,7.48]
[1759747520268,3.865,232.77,232.67,11.13046076]
[1759747520269,1.91979347,232.77,232.67,11.13046076]
[1759747520470,1.91979347,232.77,232.67,7.51]
[1759747520967,3.8654,232.74,232.67,7.51]
[1759747521167,1.22921606,232.73,232.67,7.51]
[1759747522371,5.09491606,232.73,232.67,7.51]
[1759747525872,3.8659,232.71,232.67,7.51]
[1759747526876,3.8659,232.71,232.65,7.51]
[1759747527275,3.8655,232.74,232.65,4.84967682]
[1759747527479,3.8655,232.74,232.66,7.51]
[1759747530783,3.8657,232.73,232.66,7.51]
[1759747530984,3.8657,232.73,232.67,7.51]
[1759747531182,1.22921606,232.76,232.67,3.62046076]
[1759747531484,3.8651,232.76,232.69,7.51]
[1759747532482,104.6,232.78,232.69,7.51]
[1759747532682,104.6,232.78,232.69,3.62046076]
[1759747532889,104.6,232.78,232.7,7.51]
[1759747533087,104.6,232.78,232.71,1.22921606]
[1759747533288,108.4648,232.78,232.72,7.51]
[1759747533489,104.6,232.78,232.72,7.51]
[1759747533790,104.6,232.84,232.75,7.51]
[1759747534678,3.8642,232.81,232.75,7.51]